[Event "Titled Tuesday Blitz April 11 Early 2023"]
[White "Sarana, Alexey"]
[Black "Aravindh, Chithambaram VR."]
[WhiteFideId "24133795"]
[BlackFideId "5072786"]
[WhiteElo "2714"]
[BlackElo "2596"]
[Result "1-0"]
[Round "04"]
[TimeControl "180+2"]
[Date "2023.04.11"]
[WhiteClock "0:00:10"]
[BlackClock "0:00:02"]

1. d4 {[%clk 0:03:00]}  g6 {[%clk 0:02:59]} 2. c4 {[%clk 0:03:01]}  Bg7 {[%clk 0:02:59]} 3. e4 {[%clk 0:03:01]}  c5 {[%clk 0:02:55]} 4. d5 {[%clk 0:03:00]}  d6 {[%clk 0:02:56]} 5. Bd3 {[%clk 0:02:59]}  e5 {[%clk 0:02:52]} 6. Nc3 {[%clk 0:02:42]}  Ne7 {[%clk 0:02:51]} 7. Be3 {[%clk 0:02:37]}  f5 {[%clk 0:02:49]} 8. f3 {[%clk 0:02:37]}  O-O {[%clk 0:02:49]} 9. Nge2 {[%clk 0:02:35]}  Nd7 {[%clk 0:02:48]} 10. h4 {[%clk 0:02:33]}  Nf6 {[%clk 0:02:47]} 11. Qd2 {[%clk 0:02:28]}  Bd7 {[%clk 0:02:22]} 12. Bg5 {[%clk 0:02:24]}  a6 {[%clk 0:02:07]} 13. h5 {[%clk 0:02:12]}  b5 {[%clk 0:01:35]} 14. hxg6 {[%clk 0:02:10]}  hxg6 {[%clk 0:01:36]} 15. O-O-O {[%clk 0:01:42]}  b4 {[%clk 0:01:36]} 16. Nb1 {[%clk 0:01:42]}  Kf7 {[%clk 0:01:36]} 17. Rdf1 {[%clk 0:01:37]}  Rh8 {[%clk 0:01:36]} 18. exf5 {[%clk 0:01:33]}  gxf5 {[%clk 0:01:29]} 19. g4 {[%clk 0:01:30]}  Qc8 {[%clk 0:00:53]} 20. Ng3 {[%clk 0:01:24]}  f4 {[%clk 0:00:35]} 21. Bxf6 {[%clk 0:01:16]}  Bxf6 {[%clk 0:00:36]} 22. Ne4 {[%clk 0:01:16]}  Qc7 {[%clk 0:00:36]} 23. Qg2 {[%clk 0:00:53]}  Ng6 {[%clk 0:00:34]} 24. Nxf6 {[%clk 0:00:42]}  Kxf6 {[%clk 0:00:32]} 25. g5+ {[%clk 0:00:36]}  Kg7 {[%clk 0:00:17]} 26. Rh6 {[%clk 0:00:36]}  Nh4 {[%clk 0:00:16]} 27. Qh2 {[%clk 0:00:34]}  Nf5 {[%clk 0:00:15]} 28. Bxf5 {[%clk 0:00:29]}  Bxf5 {[%clk 0:00:16]} 29. Rh1 {[%clk 0:00:29]}  Qd8 {[%clk 0:00:14]} 30. Nd2 {[%clk 0:00:18]}  a5 {[%clk 0:00:13]} 31. Qh5 {[%clk 0:00:15]}  Qe8 {[%clk 0:00:11]} 32. Qh4 {[%clk 0:00:15]}  Qa4 {[%clk 0:00:08]} 33. Ne4 {[%clk 0:00:10]}  Bxe4 {[%clk 0:00:04]} 34. fxe4 {[%clk 0:00:11]}  b3 {[%clk 0:00:03]} 35. Rh7+ {[%clk 0:00:10]}  Kg6 {[%clk 0:00:02]} 36. Qh6# {[%clk 0:00:10]} 1-0


[Site "https://www.chess.com"]

[Event "Titled Tuesday Blitz April 11 Early 2023"]
[White "Oparin, Grigoriy"]
[Black "Srihari L R"]
[WhiteFideId "24125890"]
[BlackFideId "46617116"]
[WhiteElo "2647"]
[BlackElo "2334"]
[Result "1-0"]
[Round "04"]
[TimeControl "180+2"]
[Date "2023.04.11"]
[WhiteClock "0:01:10"]
[BlackClock "0:00:01"]

1. e4 {[%clk 0:03:00]}  c6 {[%clk 0:02:59]} 2. Nc3 {[%clk 0:02:58]}  d5 {[%clk 0:02:59]} 3. Nf3 {[%clk 0:02:59]}  Bg4 {[%clk 0:02:59]} 4. h3 {[%clk 0:02:59]}  Bxf3 {[%clk 0:02:59]} 5. Qxf3 {[%clk 0:03:00]}  e6 {[%clk 0:02:59]} 6. Be2 {[%clk 0:02:54]}  Nd7 {[%clk 0:02:51]} 7. d4 {[%clk 0:02:53]}  dxe4 {[%clk 0:02:51]} 8. Nxe4 {[%clk 0:02:54]}  Ngf6 {[%clk 0:02:51]} 9. O-O {[%clk 0:02:54]}  Nxe4 {[%clk 0:02:50]} 10. Qxe4 {[%clk 0:02:55]}  Nf6 {[%clk 0:02:51]} 11. Qd3 {[%clk 0:02:55]}  Be7 {[%clk 0:02:50]} 12. Rd1 {[%clk 0:02:54]}  O-O {[%clk 0:02:50]} 13. Bf3 {[%clk 0:02:54]}  Qc7 {[%clk 0:02:49]} 14. Qe2 {[%clk 0:02:53]}  Rad8 {[%clk 0:02:48]} 15. b3 {[%clk 0:02:54]}  Nd5 {[%clk 0:02:46]} 16. Bb2 {[%clk 0:02:53]}  Bf6 {[%clk 0:02:42]} 17. c4 {[%clk 0:02:52]}  Nf4 {[%clk 0:02:42]} 18. Qc2 {[%clk 0:02:43]}  Rd7 {[%clk 0:02:36]} 19. Rd2 {[%clk 0:02:43]}  Rfd8 {[%clk 0:02:35]} 20. Rad1 {[%clk 0:02:44]}  Ng6 {[%clk 0:02:34]} 21. g3 {[%clk 0:02:30]}  Ne7 {[%clk 0:02:09]} 22. Be4 {[%clk 0:02:30]}  g6 {[%clk 0:02:08]} 23. Kg2 {[%clk 0:02:30]}  Bg7 {[%clk 0:02:07]} 24. h4 {[%clk 0:02:30]}  h5 {[%clk 0:02:07]} 25. Rd3 {[%clk 0:02:30]}  Nc8 {[%clk 0:02:03]} 26. Qe2 {[%clk 0:02:12]}  Nd6 {[%clk 0:02:01]} 27. Bf3 {[%clk 0:02:12]}  Nf5 {[%clk 0:02:00]} 28. d5 {[%clk 0:02:13]}  Bxb2 {[%clk 0:01:53]} 29. Qxb2 {[%clk 0:02:08]}  cxd5 {[%clk 0:01:50]} 30. cxd5 {[%clk 0:02:09]}  exd5 {[%clk 0:01:13]} 31. Bxd5 {[%clk 0:02:07]}  Rxd5 {[%clk 0:00:49]} 32. Rxd5 {[%clk 0:02:08]}  Rxd5 {[%clk 0:00:28]} 33. Rxd5 {[%clk 0:02:09]}  Qc6 {[%clk 0:00:28]} 34. Qe5 {[%clk 0:02:10]}  Ne7 {[%clk 0:00:27]} 35. Qxe7 {[%clk 0:02:10]}  Qxd5+ {[%clk 0:00:27]} 36. Kh2 {[%clk 0:02:10]}  Qd2 {[%clk 0:00:17]} 37. Kg1 {[%clk 0:02:03]}  Qxa2 {[%clk 0:00:15]} 38. Qxb7 {[%clk 0:02:03]}  a5 {[%clk 0:00:15]} 39. Qb5 {[%clk 0:02:02]}  Qa1+ {[%clk 0:00:13]} 40. Kg2 {[%clk 0:02:02]}  Qc3 {[%clk 0:00:13]} 41. Qd5 {[%clk 0:02:00]}  Qb4 {[%clk 0:00:13]} 42. f3 {[%clk 0:01:56]}  Kg7 {[%clk 0:00:13]} 43. Qd1 {[%clk 0:01:51]}  Qc3 {[%clk 0:00:12]} 44. g4 {[%clk 0:01:49]}  hxg4 {[%clk 0:00:12]} 45. fxg4 {[%clk 0:01:50]}  Qb4 {[%clk 0:00:12]} 46. Kg3 {[%clk 0:01:44]}  Qc3+ {[%clk 0:00:11]} 47. Qf3 {[%clk 0:01:45]}  Qe5+ {[%clk 0:00:10]} 48. Kh3 {[%clk 0:01:45]}  Qb5 {[%clk 0:00:09]} 49. Qc3+ {[%clk 0:01:38]}  Kg8 {[%clk 0:00:08]} 50. Kg3 {[%clk 0:01:38]}  Qb8+ {[%clk 0:00:08]} 51. Kf3 {[%clk 0:01:37]}  Qb5 {[%clk 0:00:06]} 52. Kf4 {[%clk 0:01:36]}  a4 {[%clk 0:00:05]} 53. bxa4 {[%clk 0:01:35]}  Qxa4+ {[%clk 0:00:06]} 54. Kg5 {[%clk 0:01:35]}  Qb5+ {[%clk 0:00:05]} 55. Kh6 {[%clk 0:01:34]}  Kf8 {[%clk 0:00:05]} 56. Qh8+ {[%clk 0:01:19]}  Ke7 {[%clk 0:00:05]} 57. Qd4 {[%clk 0:01:20]}  Qc6 {[%clk 0:00:03]} 58. Kg7 {[%clk 0:01:18]}  Qe6 {[%clk 0:00:01]} 59. Qc5+ {[%clk 0:01:09]}  Ke8 {[%clk 0:00:02]} 60. Qf8+ {[%clk 0:01:09]}  Kd7 {[%clk 0:00:01]} 61. Qxf7+ {[%clk 0:01:10]} 1-0


[Site "https://www.chess.com"]

[Event "Titled Tuesday Blitz April 11 Early 2023"]
[White "Cherniaiev, Tykhon"]
[Black "Kramnik, Vladimir"]
[WhiteFideId "14182360"]
[BlackFideId "4101588"]
[WhiteElo "2450"]
[BlackElo "2712"]
[Result "0-1"]
[Round "04"]
[TimeControl "180+2"]
[Date "2023.04.11"]
[WhiteClock "0:00:14"]
[BlackClock "0:00:47"]

1. Nf3 {[%clk 0:03:00]}  Nf6 {[%clk 0:02:57]} 2. d4 {[%clk 0:03:00]}  e6 {[%clk 0:02:56]} 3. c4 {[%clk 0:03:01]}  Bb4+ {[%clk 0:02:55]} 4. Bd2 {[%clk 0:03:01]}  Bxd2+ {[%clk 0:02:55]} 5. Nbxd2 {[%clk 0:03:00]}  d6 {[%clk 0:02:54]} 6. g3 {[%clk 0:03:00]}  O-O {[%clk 0:02:54]} 7. Bg2 {[%clk 0:03:01]}  Nc6 {[%clk 0:02:53]} 8. O-O {[%clk 0:02:53]}  e5 {[%clk 0:02:53]} 9. dxe5 {[%clk 0:02:40]}  dxe5 {[%clk 0:02:51]} 10. Qc2 {[%clk 0:02:35]}  Qe7 {[%clk 0:02:48]} 11. Ne4 {[%clk 0:02:25]}  Nxe4 {[%clk 0:02:40]} 12. Qxe4 {[%clk 0:02:25]}  f5 {[%clk 0:02:39]} 13. Qe3 {[%clk 0:02:18]}  f4 {[%clk 0:02:36]} 14. gxf4 {[%clk 0:02:06]}  exf4 {[%clk 0:02:29]} 15. Qxe7 {[%clk 0:02:03]}  Nxe7 {[%clk 0:02:29]} 16. Rad1 {[%clk 0:02:03]}  c6 {[%clk 0:02:26]} 17. b3 {[%clk 0:02:01]}  a5 {[%clk 0:02:20]} 18. a4 {[%clk 0:01:59]}  Bg4 {[%clk 0:02:14]} 19. h3 {[%clk 0:01:56]}  Bh5 {[%clk 0:02:04]} 20. Rd7 {[%clk 0:01:53]}  Nf5 {[%clk 0:01:55]} 21. Rxb7 {[%clk 0:01:28]}  Rfb8 {[%clk 0:01:54]} 22. Rxb8+ {[%clk 0:01:23]}  Rxb8 {[%clk 0:01:54]} 23. Ne5 {[%clk 0:01:01]}  Bxe2 {[%clk 0:01:30]} 24. Re1 {[%clk 0:00:57]}  f3 {[%clk 0:01:30]} 25. Nxf3 {[%clk 0:00:44]}  Bxf3 {[%clk 0:01:29]} 26. Bxf3 {[%clk 0:00:45]}  Nd4 {[%clk 0:01:29]} 27. Re3 {[%clk 0:00:45]}  Kf7 {[%clk 0:01:22]} 28. Kg2 {[%clk 0:00:44]}  Kf6 {[%clk 0:01:17]} 29. Be4 {[%clk 0:00:39]}  Rxb3 {[%clk 0:01:06]} 30. Rxb3 {[%clk 0:00:17]}  Nxb3 {[%clk 0:01:05]} 31. Bxc6 {[%clk 0:00:18]}  Ke5 {[%clk 0:01:05]} 32. Kf3 {[%clk 0:00:16]}  Nd4+ {[%clk 0:01:04]} 33. Ke3 {[%clk 0:00:16]}  Nxc6 {[%clk 0:01:03]} 34. f4+ {[%clk 0:00:17]}  Kd6 {[%clk 0:01:01]} 35. Ke4 {[%clk 0:00:16]}  Kc5 {[%clk 0:01:01]} 36. Kf5 {[%clk 0:00:16]}  Nd4+ {[%clk 0:00:53]} 37. Ke5 {[%clk 0:00:16]}  Kxc4 {[%clk 0:00:53]} 38. Kd6 {[%clk 0:00:14]}  Kb4 {[%clk 0:00:52]} 39. Ke7 {[%clk 0:00:14]}  Kxa4 {[%clk 0:00:51]} 40. Kf7 {[%clk 0:00:13]}  Nf5 {[%clk 0:00:50]} 41. Ke6 {[%clk 0:00:14]}  g6 {[%clk 0:00:49]} 42. Kf7 {[%clk 0:00:14]}  Kb5 {[%clk 0:00:49]} 43. Kg8 {[%clk 0:00:14]}  a4 {[%clk 0:00:49]} 44. Kxh7 {[%clk 0:00:14]}  Ne7 {[%clk 0:00:49]} 45. Kg7 {[%clk 0:00:14]}  a3 {[%clk 0:00:50]} 46. Kf6 {[%clk 0:00:14]}  a2 {[%clk 0:00:50]} 47. Kxe7 {[%clk 0:00:14]}  a1=Q {[%clk 0:00:49]} 48. Kf7 {[%clk 0:00:15]}  Qb1 {[%clk 0:00:48]} 49. h4 {[%clk 0:00:13]}  Qf5+ {[%clk 0:00:48]} 50. Kg7 {[%clk 0:00:14]}  Kc6 {[%clk 0:00:48]} 51. Kh6 {[%clk 0:00:14]}  Kd7 {[%clk 0:00:47]} 52. Kg7 {[%clk 0:00:14]}  Ke6 {[%clk 0:00:47]} 53. Kh6 {[%clk 0:00:14]}  Kf7 {[%clk 0:00:47]} 54. Kh7 {[%clk 0:00:14]}  Qh5# {[%clk 0:00:47]} 0-1


[Site "https://www.chess.com"]

[Event "Titled Tuesday Blitz April 11 Early 2023"]
[White "Indjic, Aleksandar"]
[Black "Weetik, Vjacheslav"]
[WhiteFideId "911925"]
[BlackFideId "4153472"]
[WhiteElo "2614"]
[BlackElo "2469"]
[Result "1-0"]
[Round "04"]
[TimeControl "180+2"]
[Date "2023.04.11"]
[WhiteClock "0:00:14"]
[BlackClock "0:00:07"]

1. d4 {[%clk 0:03:00]}  d5 {[%clk 0:02:58]} 2. c4 {[%clk 0:03:01]}  e6 {[%clk 0:02:58]} 3. Nc3 {[%clk 0:03:01]}  Nf6 {[%clk 0:02:58]} 4. cxd5 {[%clk 0:03:02]}  exd5 {[%clk 0:02:58]} 5. Bg5 {[%clk 0:03:01]}  c6 {[%clk 0:02:59]} 6. e3 {[%clk 0:03:01]}  Be7 {[%clk 0:02:59]} 7. Bd3 {[%clk 0:03:01]}  Nbd7 {[%clk 0:02:59]} 8. Qc2 {[%clk 0:02:56]}  Nh5 {[%clk 0:02:59]} 9. Bxe7 {[%clk 0:02:55]}  Qxe7 {[%clk 0:03:00]} 10. Nge2 {[%clk 0:02:54]}  g6 {[%clk 0:02:58]} 11. g4 {[%clk 0:02:53]}  Ng7 {[%clk 0:02:57]} 12. h3 {[%clk 0:02:53]}  h5 {[%clk 0:02:40]} 13. O-O-O {[%clk 0:02:52]}  Nb6 {[%clk 0:02:39]} 14. a4 {[%clk 0:02:45]}  a5 {[%clk 0:02:20]} 15. Kb1 {[%clk 0:02:43]}  Bd7 {[%clk 0:02:11]} 16. Nf4 {[%clk 0:02:32]}  Qd6 {[%clk 0:01:39]} 17. f3 {[%clk 0:02:20]}  h4 {[%clk 0:01:37]} 18. Nfe2 {[%clk 0:02:17]}  O-O {[%clk 0:01:35]} 19. e4 {[%clk 0:02:17]}  dxe4 {[%clk 0:01:06]} 20. fxe4 {[%clk 0:02:18]}  Qb4 {[%clk 0:01:06]} 21. Rhf1 {[%clk 0:01:44]}  Be6 {[%clk 0:01:06]} 22. d5 {[%clk 0:01:19]}  cxd5 {[%clk 0:00:59]} 23. Bb5 {[%clk 0:01:19]}  Rac8 {[%clk 0:00:49]} 24. Rd4 {[%clk 0:01:18]}  Qc5 {[%clk 0:00:43]} 25. Qd2 {[%clk 0:01:17]}  Nc4 {[%clk 0:00:33]} 26. Bxc4 {[%clk 0:01:16]}  dxc4 {[%clk 0:00:34]} 27. Nf4 {[%clk 0:01:17]}  Qe5 {[%clk 0:00:21]} 28. Nfd5 {[%clk 0:01:10]}  g5 {[%clk 0:00:14]} 29. Nf6+ {[%clk 0:01:06]}  Kh8 {[%clk 0:00:14]} 30. Rf5 {[%clk 0:00:48]}  Nxf5 {[%clk 0:00:12]} 31. Qxg5 {[%clk 0:00:48]}  Rg8 {[%clk 0:00:04]} 32. Qh5+ {[%clk 0:00:40]}  Kg7 {[%clk 0:00:03]} 33. exf5 {[%clk 0:00:37]}  Kxf6 {[%clk 0:00:02]} 34. Qxh4+ {[%clk 0:00:36]}  Kg7 {[%clk 0:00:02]} 35. Qg5+ {[%clk 0:00:33]}  Kf8 {[%clk 0:00:03]} 36. Qh6+ {[%clk 0:00:33]}  Ke8 {[%clk 0:00:03]} 37. Re4 {[%clk 0:00:32]}  Qg7 {[%clk 0:00:03]} 38. Qe3 {[%clk 0:00:31]}  Kf8 {[%clk 0:00:02]} 39. fxe6 {[%clk 0:00:30]}  fxe6 {[%clk 0:00:03]} 40. Rxe6 {[%clk 0:00:30]}  Qh7+ {[%clk 0:00:03]} 41. Ka1 {[%clk 0:00:29]}  Rg7 {[%clk 0:00:04]} 42. Rh6 {[%clk 0:00:23]}  Qd3 {[%clk 0:00:04]} 43. Rh8+ {[%clk 0:00:22]}  Rg8 {[%clk 0:00:04]} 44. Qf4+ {[%clk 0:00:22]}  Ke7 {[%clk 0:00:04]} 45. Qe5+ {[%clk 0:00:19]}  Kd7 {[%clk 0:00:05]} 46. Rh6 {[%clk 0:00:14]}  Rc6 {[%clk 0:00:04]} 47. Rxc6 {[%clk 0:00:12]}  bxc6 {[%clk 0:00:04]} 48. Ka2 {[%clk 0:00:12]}  Re8 {[%clk 0:00:05]} 49. Qxa5 {[%clk 0:00:12]}  Rb8 {[%clk 0:00:04]} 50. Qa7+ {[%clk 0:00:13]}  Kc8 {[%clk 0:00:05]} 51. Qa6+ {[%clk 0:00:13]}  Kc7 {[%clk 0:00:05]} 52. Qa5+ {[%clk 0:00:13]}  Kc8 {[%clk 0:00:05]} 53. Qf5+ {[%clk 0:00:13]}  Qxf5 {[%clk 0:00:05]} 54. gxf5 {[%clk 0:00:13]}  Kc7 {[%clk 0:00:05]} 55. Ne4 {[%clk 0:00:14]}  Rf8 {[%clk 0:00:06]} 56. f6 {[%clk 0:00:14]}  Kd7 {[%clk 0:00:06]} 57. Ka3 {[%clk 0:00:14]}  Ke6 {[%clk 0:00:07]} 58. Kb4 {[%clk 0:00:14]}  Kd5 {[%clk 0:00:06]} 59. Nc3+ {[%clk 0:00:15]}  Kd4 {[%clk 0:00:07]} 60. Ne2+ {[%clk 0:00:15]}  Ke5 {[%clk 0:00:06]} 61. Kxc4 {[%clk 0:00:15]}  Rxf6 {[%clk 0:00:06]} 62. b3 {[%clk 0:00:14]}  Rf2 {[%clk 0:00:06]} 63. Nc3 {[%clk 0:00:14]}  Kd6 {[%clk 0:00:07]} 64. Ne4+ {[%clk 0:00:14]} 1-0


[Site "https://www.chess.com"]

[Event "Titled Tuesday Blitz April 11 Early 2023"]
[White "Schmakel, Sam"]
[Black "Grigoriants, Sergey"]
[WhiteFideId "2039311"]
[BlackFideId "4130804"]
[WhiteElo "2356"]
[BlackElo "2502"]
[Result "0-1"]
[Round "04"]
[TimeControl "180+2"]
[Date "2023.04.11"]
[WhiteClock "0:00:03"]
[BlackClock "0:00:07"]

1. Nf3 {[%clk 0:02:59]}  Nf6 {[%clk 0:02:55]} 2. g3 {[%clk 0:02:58]}  b5 {[%clk 0:02:50]} 3. Bg2 {[%clk 0:02:57]}  Bb7 {[%clk 0:02:51]} 4. O-O {[%clk 0:02:58]}  e6 {[%clk 0:02:50]} 5. b3 {[%clk 0:02:56]}  d5 {[%clk 0:02:42]} 6. c4 {[%clk 0:02:51]}  a6 {[%clk 0:02:40]} 7. Bb2 {[%clk 0:02:45]}  Nbd7 {[%clk 0:02:37]} 8. cxd5 {[%clk 0:02:36]}  Nxd5 {[%clk 0:02:27]} 9. d4 {[%clk 0:02:32]}  Be7 {[%clk 0:02:23]} 10. Nc3 {[%clk 0:02:08]}  O-O {[%clk 0:02:23]} 11. Nxd5 {[%clk 0:01:59]}  Bxd5 {[%clk 0:02:22]} 12. Qd3 {[%clk 0:02:00]}  c5 {[%clk 0:02:16]} 13. e4 {[%clk 0:01:57]}  Bb7 {[%clk 0:02:16]} 14. Rfd1 {[%clk 0:01:52]}  Nf6 {[%clk 0:02:07]} 15. Qe3 {[%clk 0:01:41]}  Qb6 {[%clk 0:01:55]} 16. d5 {[%clk 0:01:36]}  exd5 {[%clk 0:01:47]} 17. exd5 {[%clk 0:01:37]}  Rfe8 {[%clk 0:01:45]} 18. Nh4 {[%clk 0:01:19]}  Nxd5 {[%clk 0:01:07]} 19. Qf3 {[%clk 0:00:43]}  Rad8 {[%clk 0:00:36]} 20. Nf5 {[%clk 0:00:20]}  Bf6 {[%clk 0:00:37]} 21. Bxf6 {[%clk 0:00:19]}  Qxf6 {[%clk 0:00:36]} 22. Rac1 {[%clk 0:00:18]}  c4 {[%clk 0:00:22]} 23. bxc4 {[%clk 0:00:17]}  bxc4 {[%clk 0:00:23]} 24. Rxc4 {[%clk 0:00:17]}  Nb6 {[%clk 0:00:22]} 25. Rxd8 {[%clk 0:00:15]}  Rxd8 {[%clk 0:00:22]} 26. Qxb7 {[%clk 0:00:08]}  Nxc4 {[%clk 0:00:22]} 27. Ne7+ {[%clk 0:00:07]}  Kh8 {[%clk 0:00:19]} 28. Bd5 {[%clk 0:00:06]}  Nd6 {[%clk 0:00:16]} 29. Qc7 {[%clk 0:00:06]}  Re8 {[%clk 0:00:16]} 30. Nc6 {[%clk 0:00:05]}  Rf8 {[%clk 0:00:13]} 31. Qd7 {[%clk 0:00:05]}  Nf5 {[%clk 0:00:11]} 32. h4 {[%clk 0:00:05]}  Nd4 {[%clk 0:00:10]} 33. Kg2 {[%clk 0:00:04]}  Nxc6 {[%clk 0:00:10]} 34. Bxc6 {[%clk 0:00:05]}  Qe6 {[%clk 0:00:09]} 35. Qb7 {[%clk 0:00:05]}  Qxa2 {[%clk 0:00:07]} 36. Bd5 {[%clk 0:00:05]}  Qa5 {[%clk 0:00:07]} 37. Bxf7 {[%clk 0:00:04]}  Qf5 {[%clk 0:00:07]} 38. Bd5 {[%clk 0:00:03]}  Qxf2+ {[%clk 0:00:06]} 39. Kh3 {[%clk 0:00:04]}  Qf6 {[%clk 0:00:07]} 40. Bc6 {[%clk 0:00:03]}  a5 {[%clk 0:00:07]} 41. Bd5 {[%clk 0:00:03]}  g6 {[%clk 0:00:07]} 42. Qa7 {[%clk 0:00:03]}  Qf5+ {[%clk 0:00:07]} 0-1


[Site "https://www.chess.com"]

[Event "Titled Tuesday Blitz April 11 Early 2023"]
[White "Movahed, Sina"]
[Black "Zhu, Jiner"]
[WhiteFideId "42520835"]
[BlackFideId "8608059"]
[WhiteElo "2225"]
[BlackElo "2384"]
[Result "0-1"]
[Round "04"]
[TimeControl "180+2"]
[Date "2023.04.11"]
[WhiteClock "0:00:13"]
[BlackClock "0:00:10"]

1. Nf3 {[%clk 0:03:00]}  Nf6 {[%clk 0:02:59]} 2. g3 {[%clk 0:03:00]}  g6 {[%clk 0:03:00]} 3. Bg2 {[%clk 0:03:00]}  Bg7 {[%clk 0:03:01]} 4. O-O {[%clk 0:03:01]}  O-O {[%clk 0:03:01]} 5. c4 {[%clk 0:03:01]}  c6 {[%clk 0:03:01]} 6. d4 {[%clk 0:03:00]}  d5 {[%clk 0:03:01]} 7. cxd5 {[%clk 0:03:01]}  cxd5 {[%clk 0:03:01]} 8. Ne5 {[%clk 0:03:01]}  Nbd7 {[%clk 0:02:55]} 9. Nc3 {[%clk 0:03:01]}  e6 {[%clk 0:02:54]} 10. Nd3 {[%clk 0:02:55]}  b6 {[%clk 0:02:52]} 11. a4 {[%clk 0:02:51]}  Ne8 {[%clk 0:02:46]} 12. e4 {[%clk 0:02:45]}  dxe4 {[%clk 0:02:14]} 13. Bxe4 {[%clk 0:02:39]}  Ba6 {[%clk 0:02:06]} 14. Bxa8 {[%clk 0:02:33]}  Qxa8 {[%clk 0:02:07]} 15. Nb5 {[%clk 0:02:24]}  Bb7 {[%clk 0:01:53]} 16. Be3 {[%clk 0:02:04]}  a6 {[%clk 0:01:49]} 17. Nc3 {[%clk 0:02:04]}  Nd6 {[%clk 0:01:48]} 18. d5 {[%clk 0:01:46]}  exd5 {[%clk 0:01:46]} 19. Nf4 {[%clk 0:01:46]}  Nf5 {[%clk 0:01:04]} 20. Nfxd5 {[%clk 0:01:24]}  Bxc3 {[%clk 0:00:59]} 21. Nxc3 {[%clk 0:01:12]}  Ne5 {[%clk 0:00:59]} 22. Re1 {[%clk 0:00:36]}  Nf3+ {[%clk 0:00:57]} 23. Kf1 {[%clk 0:00:36]}  Nxh2+ {[%clk 0:00:51]} 24. Kg1 {[%clk 0:00:36]}  Nf3+ {[%clk 0:00:50]} 25. Kf1 {[%clk 0:00:36]}  Nxe1 {[%clk 0:00:47]} 26. Kxe1 {[%clk 0:00:31]}  Re8 {[%clk 0:00:42]} 27. Qd3 {[%clk 0:00:25]}  Qb8 {[%clk 0:00:40]} 28. Ne2 {[%clk 0:00:22]}  Nxe3 {[%clk 0:00:38]} 29. fxe3 {[%clk 0:00:23]}  Qe5 {[%clk 0:00:38]} 30. Qb3 {[%clk 0:00:13]}  Qxe3 {[%clk 0:00:35]} 31. Qxe3 {[%clk 0:00:14]}  Rxe3 {[%clk 0:00:36]} 32. Kd2 {[%clk 0:00:15]}  Re5 {[%clk 0:00:33]} 33. Rc1 {[%clk 0:00:14]}  Re7 {[%clk 0:00:32]} 34. Rc3 {[%clk 0:00:11]}  h5 {[%clk 0:00:31]} 35. Rb3 {[%clk 0:00:11]}  Re6 {[%clk 0:00:29]} 36. Nd4 {[%clk 0:00:11]}  Rd6 {[%clk 0:00:29]} 37. Ke3 {[%clk 0:00:12]}  Kg7 {[%clk 0:00:25]} 38. a5 {[%clk 0:00:12]}  b5 {[%clk 0:00:23]} 39. Rc3 {[%clk 0:00:12]}  Bd5 {[%clk 0:00:20]} 40. Rc7 {[%clk 0:00:12]}  Kf6 {[%clk 0:00:15]} 41. b4 {[%clk 0:00:12]}  Bc4 {[%clk 0:00:15]} 42. Nc6 {[%clk 0:00:11]}  Rd3+ {[%clk 0:00:13]} 43. Kf2 {[%clk 0:00:11]}  Rd2+ {[%clk 0:00:13]} 44. Ke3 {[%clk 0:00:11]}  Rd3+ {[%clk 0:00:13]} 45. Kf2 {[%clk 0:00:12]}  Rd2+ {[%clk 0:00:13]} 46. Kg1 {[%clk 0:00:11]}  Rd1+ {[%clk 0:00:13]} 47. Kf2 {[%clk 0:00:12]}  Rf1+ {[%clk 0:00:12]} 48. Ke3 {[%clk 0:00:12]}  Re1+ {[%clk 0:00:12]} 49. Kd4 {[%clk 0:00:12]}  Rg1 {[%clk 0:00:11]} 50. Ra7 {[%clk 0:00:11]}  Rxg3 {[%clk 0:00:10]} 51. Rxa6 {[%clk 0:00:11]}  Kg7 {[%clk 0:00:10]} 52. Ne5 {[%clk 0:00:12]}  Rg1 {[%clk 0:00:09]} 53. Ra7 {[%clk 0:00:11]}  Rd1+ {[%clk 0:00:09]} 54. Ke3 {[%clk 0:00:07]}  h4 {[%clk 0:00:09]} 55. Nf3 {[%clk 0:00:06]}  h3 {[%clk 0:00:09]} 56. Kf2 {[%clk 0:00:06]}  Rf1+ {[%clk 0:00:08]} 57. Kg3 {[%clk 0:00:06]}  Bd5 {[%clk 0:00:04]} 58. Nh2 {[%clk 0:00:06]}  Rb1 {[%clk 0:00:04]} 59. Kxh3 {[%clk 0:00:07]}  Rxb4 {[%clk 0:00:04]} 60. Kg3 {[%clk 0:00:08]}  Bc4 {[%clk 0:00:04]} 61. Ng4 {[%clk 0:00:08]}  Rb3+ {[%clk 0:00:05]} 62. Kf4 {[%clk 0:00:08]}  Ra3 {[%clk 0:00:05]} 63. Ne5 {[%clk 0:00:08]}  Be6 {[%clk 0:00:05]} 64. Nc6 {[%clk 0:00:08]}  b4 {[%clk 0:00:04]} 65. Ke5 {[%clk 0:00:06]}  b3 {[%clk 0:00:04]} 66. Nd8 {[%clk 0:00:06]}  Bc4 {[%clk 0:00:04]} 67. Kd4 {[%clk 0:00:07]}  b2 {[%clk 0:00:03]} 68. Rb7 {[%clk 0:00:04]}  Rb3 {[%clk 0:00:04]} 69. Kxc4 {[%clk 0:00:02]}  Rxb7 {[%clk 0:00:03]} 70. Nxb7 {[%clk 0:00:02]}  b1=Q {[%clk 0:00:04]} 71. Nc5 {[%clk 0:00:03]}  Qa1 {[%clk 0:00:04]} 72. Kb5 {[%clk 0:00:04]}  g5 {[%clk 0:00:04]} 73. a6 {[%clk 0:00:05]}  g4 {[%clk 0:00:04]} 74. Nb3 {[%clk 0:00:06]}  Qa2 {[%clk 0:00:04]} 75. Na5 {[%clk 0:00:07]}  Qd5+ {[%clk 0:00:04]} 76. Kb6 {[%clk 0:00:07]}  Qd8+ {[%clk 0:00:04]} 77. Kb5 {[%clk 0:00:07]}  g3 {[%clk 0:00:04]} 78. Nc6 {[%clk 0:00:08]}  Qa8 {[%clk 0:00:04]} 79. Kb6 {[%clk 0:00:07]}  g2 {[%clk 0:00:05]} 80. a7 {[%clk 0:00:08]}  Qxa7+ {[%clk 0:00:05]} 81. Kxa7 {[%clk 0:00:08]}  g1=Q+ {[%clk 0:00:06]} 82. Kb7 {[%clk 0:00:09]}  Qg2 {[%clk 0:00:06]} 83. Kc7 {[%clk 0:00:09]}  Qxc6+ {[%clk 0:00:06]} 84. Kxc6 {[%clk 0:00:10]}  Kf6 {[%clk 0:00:07]} 85. Kd5 {[%clk 0:00:11]}  Kf5 {[%clk 0:00:08]} 86. Kd4 {[%clk 0:00:11]}  Kf4 {[%clk 0:00:08]} 87. Kd3 {[%clk 0:00:12]}  f5 {[%clk 0:00:08]} 88. Ke2 {[%clk 0:00:12]}  Kg3 {[%clk 0:00:09]} 89. Kf1 {[%clk 0:00:13]}  f4 {[%clk 0:00:09]} 90. Kg1 {[%clk 0:00:13]}  Kf3 {[%clk 0:00:09]} 91. Kf1 {[%clk 0:00:13]}  Ke3 {[%clk 0:00:09]} 92. Ke1 {[%clk 0:00:12]}  f3 {[%clk 0:00:09]} 93. Kf1 {[%clk 0:00:12]}  f2 {[%clk 0:00:09]} 94. Kg2 {[%clk 0:00:12]}  Ke2 {[%clk 0:00:10]} 95. Kg3 {[%clk 0:00:13]} 0-1


[Site "https://www.chess.com"]